fUSD/lending_fUSD_20250804
["ID","MTS","AMOUNT","RATE_DAILY","PERIOD"]
[377228426,1754305873535,-500.0,0.00038373,5]
[377228427,1754305873545,-211.87,0.00038383,2]
[377228428,1754305873555,-6465.89794637,0.00038383,2]
[377228429,1754305873564,-2821.29,0.000384,14]
[377228430,1754305873574,-714.04,0.000384,30]
[377228431,1754305873583,-211.87,0.0003842,2]
[377228432,1754305873593,-281.71758358,0.00038428,15]
[377228433,1754305873602,-14861.71953595,0.0003843,2]
[377228434,1754305873612,-6705.13617038,0.00038438,2]
[377228435,1754305873621,-1566.78415294,0.00038449,2]
[377228436,1754305873631,-211.87,0.00038456,2]
[377228437,1754305873640,-1529.9361332,0.00038492,2]
[377228438,1754305873650,-6953.22620868,0.00038493,2]
[377228439,1754305873660,-2063.57057137,0.00038502,2]
[377228440,1754305873670,-14861.71953595,0.00038509,2]
[377228441,1754305873680,-1605.0,0.00038521,120]
[377228442,1754305873690,-1000.92915465,0.00038521,5]
[377228443,1754305873700,-1000.0,0.00038521,5]
[377228444,1754305873709,-215.77815653,0.0003853,7]
[377228445,1754305873718,-262.88774351,0.0003853,90]
[377228446,1754305873728,-3984.67847066,0.0003853,2]
[377228447,1754305873737,-316.6866093,0.0003853,2]
[377228448,1754305873746,-1382.47527457,0.00038548,2]
[377228449,1754305873757,-14861.71953595,0.00038589,2]
[377228450,1754305873766,-5000.0,0.000386,14]
[377228451,1754305873775,-190.87492573,0.000386,120]
[377228452,1754305873785,-826.47354212,0.000386,120]
[377228453,1754305873795,-826.47354212,0.000386,120]
[377228454,1754305873804,-826.47354212,0.000386,120]
[377228455,1754305873814,-826.47354212,0.000386,120]
[377228456,1754305873823,-826.47354212,0.000386,120]
[377228457,1754305873833,-826.47354212,0.000386,120]
[377228458,1754305873842,-826.47354212,0.000386,120]
[377228459,1754305873852,-826.47354212,0.000386,120]
[377228460,1754305873861,-826.47354212,0.000386,120]
[377228461,1754305873872,-826.47354212,0.000386,120]
[377228462,1754305873881,-826.47354212,0.000386,120]
[377228463,1754305873891,-826.47354212,0.000386,120]
[377228464,1754305873903,-826.47354212,0.000386,120]
[377228465,1754305873912,-826.47354212,0.000386,120]
[377228466,1754305873922,-826.47354212,0.000386,120]
[377228467,1754305873932,-826.47354212,0.000386,120]
[377228468,1754305873941,-826.47354212,0.000386,120]
[377228469,1754305873950,-826.47354212,0.000386,120]
[377228470,1754305873960,-500.0,0.00038602,2]
[377228471,1754305873970,-500.0,0.00038602,2]
[377228472,1754305873979,-500.0,0.00038602,2]
[377228473,1754305873988,-504.52,0.00038602,2]
[377228474,1754305873997,-2793.1,0.00038602,2]
[377228475,1754305874006,-500.0,0.00038602,2]
[377228476,1754305874015,-778.68,0.00038602,2]
[377228477,1754305874024,-1206.28,0.00038602,2]
[377228478,1754305874033,-500.0,0.00038602,2]
[377228479,1754305874043,-1453.57,0.00038602,2]
[377228480,1754305874052,-500.0,0.00038602,2]
[377228481,1754305874062,-568.4,0.00038602,2]
[377228482,1754305874071,-136104.0,0.00038603,120]
[377228483,1754305874080,-1673.68852157,0.0003862,2]
[377228484,1754305874090,-341.50224191,0.0003862,2]
[377228485,1754305874100,-500.0,0.00038629,2]
[377228486,1754305874330,-539.44441792,0.00038629,2]
[377228487,1754305874352,-500.0,0.00038629,2]
[377228488,1754305874362,-500.0,0.00038629,2]
[377228489,1754305874372,-500.0,0.00038629,2]
[377228490,1754305874382,-500.0,0.00038629,2]
[377228491,1754305874393,-500.0,0.00038629,2]
[377228492,1754305874403,-500.0,0.00038629,2]
[377228493,1754305874413,-500.0,0.00038629,2]
[377228494,1754305874423,-500.0,0.00038629,2]
[377228495,1754305874433,-500.0,0.00038629,2]
[377228496,1754305874442,-500.0,0.00038629,2]
[377228497,1754305874452,-500.0,0.00038629,2]
[377228498,1754305874462,-504.52,0.00038629,2]
[377228499,1754305874472,-504.52,0.00038629,2]
[377228500,1754305874481,-504.52,0.00038629,2]
[377228501,1754305874491,-504.52,0.00038629,2]
[377228502,1754305874501,-504.52,0.00038629,2]
[377228503,1754305874511,-2793.1,0.00038629,2]
[377228504,1754305874521,-2793.1,0.00038629,2]
[377228505,1754305874531,-2793.1,0.00038629,2]
[377228506,1754305874541,-2793.1,0.00038629,2]
[377228507,1754305874551,-500.0,0.00038629,2]
[377228508,1754305874561,-500.0,0.00038629,2]
[377228509,1754305874570,-160.20137018,0.00038629,2]
[377228510,1754305874580,-778.68,0.00038629,2]
[377228511,1754305874590,-778.68,0.00038629,2]
[377228512,1754305874599,-778.68,0.00038629,2]
[377228513,1754305874609,-778.68,0.00038629,2]
[377228514,1754305874618,-778.68,0.00038629,2]
[377228515,1754305874628,-1206.28,0.00038629,2]
[377228516,1754305874637,-1206.28,0.00038629,2]
[377228517,1754305874647,-1206.28,0.00038629,2]
[377228518,1754305874656,-1206.28,0.00038629,2]
[377228519,1754305874666,-1206.28,0.00038629,2]
[377228520,1754305874676,-500.0,0.00038629,2]
[377228521,1754305874685,-500.0,0.00038629,2]
[377228522,1754305874695,-500.0,0.00038629,2]
[377228523,1754305874704,-500.0,0.00038629,2]
[377228524,1754305874713,-500.0,0.00038629,2]
[377228525,1754305874723,-1453.57,0.00038629,2]
[377228526,1754305874732,-1453.57,0.00038629,2]
[377228527,1754305874742,-1453.57,0.00038629,2]
[377228528,1754305874752,-1453.57,0.00038629,2]
[377228529,1754305874761,-1453.57,0.00038629,2]
[377228530,1754305874771,-500.0,0.00038629,2]
[377228531,1754305874781,-447.39986026,0.00038629,2]
[377228532,1754305874790,-568.4,0.00038629,2]
[377228533,1754305874800,-568.4,0.00038629,2]
[377228534,1754305874810,-568.4,0.00038629,2]
[377228535,1754305874820,-568.4,0.00038629,2]
[377228536,1754305874829,-568.4,0.00038629,2]
[377228537,1754305874839,-151.0,0.0003863,14]
[377228538,1754305874849,-152.169731,0.0003863,14]
[377228539,1754305874858,-151.0,0.0003863,14]
[377228540,1754305874867,-151.0,0.0003863,14]
[377228541,1754305874876,-151.0,0.0003863,14]
[377228542,1754305874885,-151.0,0.0003863,14]
[377228543,1754305874897,-276.841395,0.0003863,14]
[377228544,1754305874907,-151.0,0.0003863,14]
[377228545,1754305874916,-151.0,0.0003863,14]
[377228546,1754305874925,-400.0,0.0003863,2]
[377228547,1754305874936,-400.0,0.0003863,2]
[377228548,1754305874946,-400.0,0.0003863,2]
[377228549,1754305874955,-400.0,0.0003863,2]
[377228550,1754305874965,-400.0,0.0003863,2]
[377228551,1754305874975,-400.0,0.0003863,2]
[377228552,1754305874985,-400.0,0.0003863,2]
[377228553,1754305874994,-203.3918934,0.0003863,2]
[377228554,1754305875003,-400.0,0.0003863,2]
[377228555,1754305875013,-400.0,0.0003863,2]
[377228556,1754305875022,-400.0,0.0003863,2]
[377228557,1754305875031,-402.9903296,0.0003863,2]
[377228558,1754305875040,-400.0,0.0003863,2]
[377228559,1754305875049,-400.0,0.0003863,2]
[377228560,1754305875058,-400.0,0.0003863,2]
[377228561,1754305875068,-400.0,0.0003863,2]
[377228562,1754305875077,-400.0,0.0003863,2]
[377228563,1754305875086,-400.0,0.0003863,2]
[377228564,1754305875095,-400.0,0.0003863,2]
[377228565,1754305875104,-400.0,0.0003863,2]
[377228566,1754305875114,-400.0,0.0003863,2]
[377228567,1754305875123,-400.0,0.0003863,2]
[377228568,1754305875132,-400.0,0.0003863,2]
[377228569,1754305875142,-400.0,0.0003863,2]
[377228570,1754305875152,-543.93561914,0.0003863,2]
[377228571,1754305875161,-400.0,0.0003863,2]
[377228572,1754305875170,-400.0,0.0003863,2]
[377228573,1754305875181,-400.0,0.0003863,2]
[377228574,1754305875190,-400.0,0.0003863,2]
[377228575,1754305875200,-400.0,0.0003863,2]
[377228576,1754305875210,-400.0,0.0003863,2]
[377228577,1754305875220,-400.0,0.0003863,2]
[377228578,1754305875230,-400.0,0.0003863,2]
[377228579,1754305875240,-400.0,0.0003863,2]
[377228580,1754305875249,-400.0,0.0003863,2]
[377228581,1754305875259,-294.57542447,0.0003863,2]
[377228582,1754305875269,-402.15063977,0.0003863,2]
[377228583,1754305875278,-400.0,0.0003863,2]
[377228584,1754305875288,-400.0,0.0003863,2]
[377228585,1754305875297,-400.0,0.0003863,2]
[377228586,1754305875307,-400.0,0.0003863,2]
[377228587,1754305875316,-400.0,0.0003863,2]
[377228588,1754305875326,-400.0,0.0003863,2]
[377228589,1754305875335,-400.0,0.0003863,2]
[377228590,1754305875344,-400.0,0.0003863,2]
[377228591,1754305875353,-400.0,0.0003863,2]
[377228592,1754305875362,-400.0,0.0003863,2]
[377228593,1754305875372,-400.0,0.0003863,2]
[377228594,1754305875382,-547.58,0.0003863,2]
[377228595,1754305875391,-400.0,0.0003863,2]
[377228596,1754305875400,-458.04,0.0003863,2]
[377228597,1754305875410,-400.0,0.0003863,2]
[377228598,1754305875419,-1200.66,0.0003863,2]
[377228599,1754305875430,-586.47,0.0003863,2]
[377228600,1754305875440,-520.3,0.0003863,2]
[377228601,1754305875449,-400.0,0.0003863,2]
[377228602,1754305875459,-400.0,0.0003863,2]
[377228603,1754305875468,-400.0,0.0003863,2]
[377228604,1754305875478,-400.0,0.0003863,2]
[377228605,1754305875488,-400.0,0.0003863,2]
[377228606,1754305875497,-452.57,0.0003863,2]
[377228607,1754305875506,-400.0,0.0003863,2]
[377228608,1754305875516,-400.0,0.0003863,2]
[377228609,1754305875525,-400.0,0.0003863,2]
[377228610,1754305875535,-472.84,0.0003863,2]
[377228611,1754305875545,-400.0,0.0003863,2]
[377228612,1754305875555,-400.0,0.0003863,2]
[377228613,1754305875565,-1404.01,0.0003863,2]
[377228614,1754305875574,-400.0,0.0003863,2]
[377228615,1754305875584,-400.0,0.0003863,2]
[377228616,1754305875594,-1341.8,0.0003863,2]
[377228617,1754305875603,-400.0,0.0003863,2]
[377228618,1754305875613,-400.0,0.0003863,2]
[377228619,1754305875623,-484.06,0.0003863,2]
[377228620,1754305875632,-1693.03,0.0003863,2]
[377228621,1754305875642,-667.41,0.0003863,2]
[377228622,1754305875652,-400.0,0.0003863,2]
[377228623,1754305875661,-400.0,0.0003863,2]
[377228624,1754305875671,-400.0,0.0003863,2]
[377228625,1754305875682,-400.0,0.0003863,2]
[377228626,1754305875692,-537.19,0.0003863,2]
[377228627,1754305875701,-849.99,0.0003863,2]
[377228628,1754305875711,-931.14,0.0003863,2]
[377228629,1754305875721,-458.07,0.0003863,2]
[377228630,1754305875731,-1076.15,0.0003863,2]
[377228631,1754305875741,-1903.28,0.0003863,2]
[377228632,1754305875750,-400.0,0.0003863,2]
[377228633,1754305875760,-495.31420613,0.0003863,2]
[377228634,1754305875770,-400.0,0.0003863,2]
[377228635,1754305875779,-400.0,0.0003863,2]
[377228636,1754305875789,-342.23192629,0.0003863,2]
[377228637,1754305875799,-400.0,0.0003863,2]
[377228638,1754305875809,-643.67,0.0003863,2]
[377228639,1754305875819,-1064.8,0.0003863,2]
[377228640,1754305875829,-400.0,0.0003863,2]
[377228641,1754305875839,-595.01,0.0003863,2]
[377228642,1754305875848,-400.0,0.0003863,2]
[377228643,1754305875858,-400.0,0.0003863,2]
[377228644,1754305875868,-400.0,0.0003863,2]
[377228645,1754305875877,-1756.29,0.0003863,2]
[377228646,1754305875887,-824.14,0.0003863,2]
[377228647,1754305875900,-400.0,0.0003863,2]
[377228648,1754305875912,-1696.93,0.0003863,2]
[377228649,1754305875922,-400.0,0.0003863,2]
[377228650,1754305875933,-400.63677282,0.0003863,2]
[377228651,1754305875943,-400.0,0.0003863,2]
[377228652,1754305875952,-400.0,0.0003863,2]
[377228653,1754305875962,-767.86,0.0003863,2]
[377228654,1754305875972,-400.0,0.0003863,2]
[377228655,1754305875981,-1492.28,0.0003863,2]
[377228656,1754305875991,-400.0,0.0003863,2]
[377228657,1754305876000,-400.0,0.0003863,2]
[377228658,1754305876010,-345.08218267,0.0003863,2]
[377228659,1754305876019,-400.0,0.0003863,2]
[377228660,1754305876029,-400.0,0.0003863,2]
[377228661,1754305876039,-400.0,0.0003863,2]
[377228662,1754305876048,-438.6983161,0.0003863,2]
[377228663,1754305876057,-661.87,0.0003863,2]
[377228664,1754305876068,-400.0,0.0003863,2]
[377228665,1754305876078,-400.0,0.0003863,2]
[377228666,1754305876088,-400.0,0.0003863,2]
[377228667,1754305876098,-400.0,0.0003863,2]
[377228668,1754305876108,-400.0,0.0003863,2]
[377228669,1754305876118,-400.0,0.0003863,2]
[377228670,1754305876128,-400.0,0.0003863,2]
[377228671,1754305876137,-400.45,0.0003863,2]
[377228672,1754305876147,-1939.24,0.0003863,2]
[377228673,1754305876157,-400.0,0.0003863,2]
[377228674,1754305876166,-400.0,0.0003863,2]
[377228675,1754305876176,-786.11,0.0003863,2]
[377228676,1754305876185,-835.46,0.0003863,2]
[377228677,1754305876196,-475.26915174,0.0003863,2]
[377228678,1754305876206,-1820.66,0.0003863,2]
[377228679,1754305876215,-463.48,0.0003863,2]
[377228680,1754305876225,-400.0,0.0003863,2]
[377228681,1754305876235,-400.0,0.0003863,2]
[377228682,1754305876245,-1385.33,0.0003863,2]
[377228683,1754305876255,-400.0,0.0003863,2]
[377228684,1754305876264,-400.0,0.0003863,2]
[377228685,1754305876273,-400.0,0.0003863,2]
[377228686,1754305876283,-498.89,0.0003863,2]
[377228687,1754305876294,-499.13,0.0003863,2]
[377228688,1754305876303,-1516.62,0.0003863,2]
[377228689,1754305876314,-529.40867858,0.0003863,2]
[377228690,1754305876324,-900.0,0.0003863,2]
[377228691,1754305876333,-400.0,0.0003863,2]
[377228692,1754305876343,-400.0,0.0003863,2]
[377228693,1754305876353,-400.0,0.0003863,2]
[377228694,1754305876363,-400.0,0.0003863,2]
[377228695,1754305876372,-153.46,0.0003863,2]
[377228696,1754305876382,-550.11,0.0003863,2]
[377228697,1754305876392,-400.0,0.0003863,2]
[377228698,1754305876401,-399.89395556,0.0003863,2]
[377228699,1754305876410,-454.35,0.0003863,2]
[377228700,1754305876419,-1067.05,0.0003863,2]
[377228701,1754305876430,-400.0,0.0003863,2]
[377228702,1754305876439,-915.17,0.0003863,2]
[377228703,1754305876449,-1153.57,0.0003863,2]
[377228704,1754305876459,-470.47,0.0003863,2]
[377228705,1754305876469,-400.0,0.0003863,2]
[377228706,1754305876478,-400.0,0.0003863,2]
[377228707,1754305876488,-400.0,0.0003863,2]
[377228708,1754305876498,-400.0,0.0003863,2]
[377228709,1754305876509,-400.0,0.0003863,2]
[377228710,1754305876518,-1488.11,0.0003863,2]
[377228711,1754305876528,-742.88,0.0003863,2]
[377228712,1754305876538,-661.14,0.0003863,2]
[377228713,1754305876548,-400.0,0.0003863,2]
[377228714,1754305876558,-400.0,0.0003863,2]
[377228715,1754305876567,-441.54,0.0003863,2]
[377228716,1754305876577,-916.79,0.0003863,2]
[377228717,1754305876587,-1102.43,0.0003863,2]
[377228718,1754305876597,-587.55,0.0003863,2]
[377228719,1754305876607,-424.37,0.0003863,2]
[377228720,1754305876616,-401.35339348,0.0003863,2]
[377228721,1754305876626,-403.18830264,0.0003863,2]
[377228722,1754305876635,-400.0,0.0003863,2]
[377228723,1754305876645,-400.0,0.0003863,2]
[377228724,1754305876654,-400.0,0.0003863,2]
[377228725,1754305876664,-400.0,0.0003863,2]
[377228726,1754305876674,-1819.37,0.0003863,2]
[377228727,1754305876686,-1188.91,0.0003863,2]
[377228728,1754305876696,-400.0,0.0003863,2]
[377228729,1754305876705,-202.22968361,0.0003863,2]
[377228730,1754305876715,-400.0,0.0003863,2]
[377228731,1754305876724,-400.0,0.0003863,2]
[377228732,1754305876734,-439.11,0.0003863,2]
[377228733,1754305876744,-400.0,0.0003863,2]
[377228734,1754305876753,-400.0,0.0003863,2]
[377228735,1754305876762,-400.0,0.0003863,2]
[377228736,1754305876772,-353.73387739,0.0003863,2]
[377228737,1754305876873,-400.0,0.0003863,2]
[377228738,1754305876883,-458.01008572,0.0003863,2]
[377228739,1754305876894,-400.0,0.0003863,2]
[377228740,1754305876909,-425.44358747,0.0003863,2]
[377228741,1754305876919,-400.0,0.0003863,2]
[377228742,1754305876929,-1119.27,0.0003863,2]
[377228743,1754305876938,-884.11,0.0003863,2]
[377228744,1754305876949,-191.9,0.0003863,2]
[377228745,1754305876958,-465.18,0.0003863,2]
[377228746,1754305876967,-523.33674784,0.0003863,2]
[377228747,1754305876979,-400.0,0.0003863,2]
[377228748,1754305876988,-400.0,0.0003863,2]
[377228749,1754305876997,-1124.7,0.0003863,2]
[377228750,1754305877008,-953.16,0.0003863,2]
[377228751,1754305877017,-1903.44,0.0003863,2]
[377228752,1754305877027,-400.0,0.0003863,2]
[377228753,1754305877036,-449.54,0.0003863,2]
[377228754,1754305877045,-977.67,0.0003863,2]
[377228755,1754305877054,-400.0,0.0003863,2]
[377228756,1754305877064,-400.0,0.0003863,2]
[377228757,1754305877073,-400.0,0.0003863,2]
[377228758,1754305877082,-400.0,0.0003863,2]
[377228759,1754305877091,-357.69551445,0.0003863,2]
[377228760,1754305877100,-2558.85,0.0003863,2]
[377228761,1754305877110,-403.94694301,0.0003863,2]
[377228762,1754305877119,-480.36,0.0003863,2]
[377228763,1754305877129,-400.0,0.0003863,2]
[377228764,1754305877138,-400.0,0.0003863,2]
[377228765,1754305877148,-2716.06,0.0003863,2]
[377228766,1754305877157,-400.0,0.0003863,2]
[377228767,1754305877167,-400.0,0.0003863,2]
[377228768,1754305877177,-400.0,0.0003863,2]
[377228769,1754305877186,-400.0,0.0003863,2]
[377228770,1754305877196,-1399.58,0.0003863,2]
[377228771,1754305877205,-1797.0,0.0003863,2]
[377228772,1754305877215,-402.72002524,0.0003863,2]
[377228773,1754305877224,-269.02,0.0003863,2]
[377228774,1754305877234,-400.0,0.0003863,2]
[377228775,1754305877243,-2022.23,0.0003863,2]
[377228776,1754305877253,-267.82669407,0.0003863,2]
[377228777,1754305877262,-459.32,0.0003863,2]
[377228778,1754305877271,-4159.78,0.0003863,2]
[377228779,1754305877282,-400.0,0.0003863,2]
[377228780,1754305877291,-687.73,0.0003863,2]
[377228781,1754305877301,-452.62,0.0003863,2]
[377228782,1754305877311,-400.0,0.0003863,2]
[377228783,1754305877321,-1027.4,0.0003863,2]
[377228784,1754305877331,-400.0,0.0003863,2]
[377228785,1754305877342,-743.48,0.0003863,2]
[377228786,1754305877351,-400.0,0.0003863,2]
[377228787,1754305877360,-400.0,0.0003863,2]
[377228788,1754305877369,-400.0,0.0003863,2]
[377228789,1754305877378,-500.0,0.0003863,2]
[377228790,1754305877388,-401.8600715,0.0003863,2]
[377228791,1754305877398,-400.0,0.0003863,2]
[377228792,1754305877408,-400.0,0.0003863,2]
[377228793,1754305877418,-1103.2,0.0003863,2]
[377228794,1754305877428,-400.0,0.0003863,2]
[377228795,1754305877439,-2146.76,0.0003863,2]
[377228796,1754305877449,-1197.92,0.0003863,2]
[377228797,1754305877458,-400.0,0.0003863,2]
[377228798,1754305877468,-697.9,0.0003863,2]
[377228799,1754305877478,-403.80338332,0.0003863,2]
[377228800,1754305877487,-700.27,0.0003863,2]
[377228801,1754305877497,-400.0,0.0003863,2]
[377228802,1754305877508,-400.0,0.0003863,2]
[377228803,1754305877517,-442.05,0.0003863,2]
[377228804,1754305877526,-400.0,0.0003863,2]
[377228805,1754305877536,-400.0,0.0003863,2]
[377228806,1754305877546,-400.0,0.0003863,2]
[377228807,1754305877555,-400.0,0.0003863,2]
[377228808,1754305877565,-400.0,0.0003863,2]
[377228809,1754305877574,-763.21,0.0003863,2]
[377228810,1754305877584,-664.53,0.0003863,2]
[377228811,1754305877593,-862.35,0.0003863,2]
[377228812,1754305877603,-402.29099419,0.0003863,2]
[377228813,1754305877612,-624.93,0.0003863,2]
[377228814,1754305877621,-400.0,0.0003863,2]
[377228815,1754305877631,-793.15,0.0003863,2]
[377228816,1754305877641,-639.19,0.0003863,2]
[377228817,1754305877650,-400.0,0.0003863,2]
[377228818,1754305877660,-605.24,0.0003863,2]
[377228819,1754305877670,-2472.68,0.0003863,2]
[377228820,1754305877680,-400.0,0.0003863,2]
[377228821,1754305877691,-1841.68,0.0003863,2]
[377228822,1754305877701,-400.0,0.0003863,2]
[377228823,1754305877711,-1091.38,0.0003863,2]
[377228824,1754305877720,-400.0,0.0003863,2]
[377228825,1754305877730,-400.0,0.0003863,2]
[377228826,1754305877740,-400.0,0.0003863,2]
[377228827,1754305877749,-569.15,0.0003863,2]
[377228828,1754305877758,-482.87,0.0003863,2]
[377228829,1754305877768,-400.0,0.0003863,2]
[377228830,1754305877783,-400.0,0.0003863,2]
[377228831,1754305877793,-1179.1,0.0003863,2]
[377228832,1754305877803,-400.0,0.0003863,2]
[377228833,1754305877813,-400.0,0.0003863,2]
[377228834,1754305877824,-400.0,0.0003863,2]
[377228835,1754305877834,-400.0,0.0003863,2]
[377228836,1754305877844,-1320.13,0.0003863,2]
[377228837,1754305877854,-400.0,0.0003863,2]
[377228838,1754305877864,-1348.28,0.0003863,2]
[377228839,1754305877874,-908.97,0.0003863,2]
[377228840,1754305877884,-402.89271312,0.0003863,2]
[377228841,1754305877896,-1144.27,0.0003863,2]
[377228842,1754305877907,-1407.62,0.0003863,2]
[377228843,1754305877917,-448.56,0.0003863,2]
[377228844,1754305877927,-400.0,0.0003863,2]
[377228845,1754305877939,-853.71,0.0003863,2]
[377228846,1754305877949,-609.84,0.0003863,2]
[377228847,1754305877959,-600.02,0.0003863,2]
[377228848,1754305877968,-400.0,0.0003863,2]
[377228849,1754305877978,-400.0,0.0003863,2]
[377228850,1754305877988,-1274.99,0.0003863,2]
[377228851,1754305877998,-400.0,0.0003863,2]
[377228852,1754305878007,-2778.93,0.0003863,2]
[377228853,1754305878016,-400.0,0.0003863,2]
[377228854,1754305878026,-800.16,0.0003863,2]
[377228855,1754305878037,-400.0,0.0003863,2]
[377228856,1754305878047,-787.7,0.0003863,2]
[377228857,1754305878056,-627.38,0.0003863,2]
[377228858,1754305878066,-500.6,0.0003863,2]
[377228859,1754305878076,-499.94,0.0003863,2]
[377228860,1754305878085,-400.0,0.0003863,2]
[377228861,1754305878096,-400.0,0.0003863,2]
[377228862,1754305878105,-205.43931055,0.0003863,2]
[377228863,1754305878115,-461.32,0.0003863,2]
[377228864,1754305878125,-400.0,0.0003863,2]
[377228865,1754305878136,-1107.49,0.0003863,2]
[377228866,1754305878146,-1182.54,0.0003863,2]
[377228867,1754305878157,-462.898121,0.0003863,2]
[377228868,1754305878167,-400.0,0.0003863,2]
[377228869,1754305878177,-400.0,0.0003863,2]
[377228870,1754305878189,-400.0,0.0003863,2]
[377228871,1754305878199,-2273.69,0.0003863,2]
[377228872,1754305878209,-400.0,0.0003863,2]
[377228873,1754305878220,-400.0,0.0003863,2]
[377228874,1754305878230,-400.0,0.0003863,2]
[377228875,1754305878241,-790.39,0.0003863,2]
[377228876,1754305878251,-430.03134352,0.0003863,2]
[377228877,1754305878262,-400.0,0.0003863,2]
[377228878,1754305878273,-400.0,0.0003863,2]
[377228879,1754305878283,-400.0,0.0003863,2]
[377228880,1754305878294,-400.0,0.0003863,2]
[377228881,1754305878305,-746.2,0.0003863,2]
[377228882,1754305878315,-400.0,0.0003863,2]
[377228883,1754305878325,-400.0,0.0003863,2]
[377228884,1754305878335,-2544.09,0.0003863,2]
[377228885,1754305878346,-513.6,0.0003863,2]
[377228886,1754305878357,-400.0,0.0003863,2]
[377228887,1754305878367,-468.94245589,0.0003863,2]
[377228888,1754305878376,-1066.14,0.0003863,2]
[377228889,1754305878388,-445.82,0.0003863,2]
[377228890,1754305878398,-856.62,0.0003863,2]
[377228891,1754305878408,-1070.42,0.0003863,2]
[377228892,1754305878418,-548.68,0.0003863,2]
[377228893,1754305878428,-400.0,0.0003863,2]
[377228894,1754305878439,-865.19,0.0003863,2]
[377228895,1754305878449,-413.36,0.0003863,2]
[377228896,1754305878459,-1968.28,0.0003863,2]
[377228897,1754305878469,-400.0,0.0003863,2]
[377228898,1754305878479,-400.0,0.0003863,2]
[377228899,1754305878490,-460.79,0.0003863,2]
[377228900,1754305878500,-1119.16,0.0003863,2]
[377228901,1754305878510,-400.0,0.0003863,2]
[377228902,1754305878520,-400.0,0.0003863,2]
[377228903,1754305878530,-1422.91,0.0003863,2]
[377228904,1754305878540,-400.0,0.0003863,2]
[377228905,1754305878550,-400.0,0.0003863,2]
[377228906,1754305878561,-400.0,0.0003863,2]
[377228907,1754305878571,-1354.16,0.0003863,2]
[377228908,1754305878582,-400.0,0.0003863,2]
[377228909,1754305878592,-1000.0,0.0003863,2]
[377228910,1754305878602,-165.375728,0.0003863,2]
[377228911,1754305878613,-400.0,0.0003863,2]
[377228912,1754305878623,-400.0,0.0003863,2]
[377228913,1754305878634,-400.0,0.0003863,2]
[377228914,1754305878643,-400.0,0.0003863,2]
[377228915,1754305878653,-400.0,0.0003863,2]
[377228916,1754305878663,-498.3300379,0.0003863,2]
[377228917,1754305878674,-400.0,0.0003863,2]
[377228918,1754305878684,-400.0,0.0003863,2]
[377228919,1754305878695,-400.0,0.0003863,2]
[377228920,1754305878705,-400.0,0.0003863,2]
[377228921,1754305878715,-400.0,0.0003863,2]
[377228922,1754305878726,-400.0,0.0003863,2]
[377228923,1754305878737,-400.0,0.0003863,2]
[377228924,1754305878747,-625.15,0.0003863,2]
[377228925,1754305878757,-400.0,0.0003863,2]